fUST/lending_fUST_20250408
["ID","MTS","AMOUNT","RATE_DAILY","PERIOD"]
[357464973,1744075855181,-511.39,0.00024657,2]
[357464974,1744075855191,-998.79,0.00024657,2]
[357464975,1744075855201,-428.69,0.00024657,2]
[357464976,1744075855210,-706.46,0.00024657,2]
[357464977,1744075855224,-268.52692992,0.00024657,2]
[357464978,1744075855234,-747.15,0.00024657,2]
[357464979,1744075855257,-500.0,0.00024657,2]
[357464980,1744075855268,-613.65,0.00024657,2]
[357464981,1744075855278,-500.0,0.00024657,2]
[357464982,1744075855288,-500.0,0.00024657,2]
[357464983,1744075855297,-423.1406649,0.00024657,2]
[357464984,1744075855307,-1243.28,0.00024657,2]
[357464985,1744075855317,-571.29,0.00024657,2]
[357464986,1744075855327,-1564.56,0.00024657,2]
[357464987,1744075855338,-806.0,0.00024657,2]
[357464988,1744075855348,-500.0,0.00024657,2]
[357464989,1744075855358,-2890.56,0.00024657,2]
[357464990,1744075855368,-645.6,0.00024657,2]
[357464991,1744075855378,-560.24,0.00024657,2]
[357464992,1744075855388,-500.0,0.00024657,2]
[357464993,1744075855397,-500.0,0.00024657,2]
[357464994,1744075855407,-500.0,0.00024657,2]
[357464995,1744075855418,-686.29,0.00024657,2]
[357464996,1744075855428,-644.83,0.00024657,2]
[357464997,1744075855438,-683.69,0.00024657,2]
[357464998,1744075855448,-963.6,0.00024657,2]
[357464999,1744075855458,-745.08,0.00024657,2]
[357465000,1744075855469,-629.61138352,0.00024657,2]
[357465001,1744075855479,-5061.69,0.00024657,2]
[357465002,1744075855489,-1159.91,0.00024657,2]
[357465003,1744075855499,-1279.45,0.00024657,2]
[357465004,1744075855508,-643.68,0.00024657,2]
[357465005,1744075855518,-996.41,0.00024657,2]
[357465006,1744075855527,-645.19,0.00024657,2]
[357465007,1744075855538,-690.67,0.00024657,2]
[357465008,1744075855547,-489.595635,0.00024657,2]
[357465009,1744075855557,-886.21,0.00024657,2]
[357465010,1744075855567,-917.76,0.00024657,2]
[357465011,1744075855576,-500.0,0.00024657,2]
[357465012,1744075855586,-484.73781268,0.00024657,2]
[357465013,1744075855597,-1205.86,0.00024657,2]
[357465014,1744075855608,-650.7,0.00024657,2]
[357465015,1744075855618,-500.0,0.00024657,2]
[357465016,1744075855627,-718.92,0.00024657,2]
[357465017,1744075855638,-906.03,0.00024657,2]
[357465018,1744075855648,-657.7,0.00024657,2]
[357465019,1744075855657,-500.0,0.00024657,2]
[357465020,1744075855667,-1058.79,0.00024657,2]
[357465021,1744075855680,-192.25058245,0.00024657,2]
[357465022,1744075855690,-1529.51,0.00024657,2]
[357465023,1744075855701,-500.0,0.00024657,2]
[357465024,1744075855710,-923.55,0.00024657,2]
[357465025,1744075855723,-605.62,0.00024657,2]
[357465026,1744075855732,-1846.61,0.00024657,2]
[357465027,1744075855742,-500.0,0.00024658,2]
[357465028,1744075855752,-500.0,0.00024658,2]
[357465029,1744075855762,-500.0,0.00024658,2]
[357465030,1744075855772,-500.0,0.00024658,2]
[357465031,1744075855781,-500.0,0.00024658,2]
[357465032,1744075855791,-500.0,0.00024658,2]
[357465033,1744075855800,-500.0,0.00024658,2]
[357465034,1744075855810,-500.0,0.00024658,2]
[357465035,1744075855820,-500.0,0.00024658,2]
[357465036,1744075855831,-500.0,0.00024658,2]
[357465037,1744075855840,-500.0,0.00024658,2]
[357465038,1744075855850,-500.0,0.00024658,2]
[357465039,1744075855859,-500.0,0.00024658,2]
[357465040,1744075855870,-500.0,0.00024658,2]
[357465041,1744075855886,-500.0,0.00024658,2]
[357465042,1744075855896,-500.0,0.00024658,2]
[357465043,1744075855906,-500.0,0.00024658,2]
[357465044,1744075855916,-500.0,0.00024658,2]
[357465045,1744075855925,-500.0,0.00024658,2]
[357465046,1744075855936,-500.0,0.00024658,2]
[357465047,1744075855946,-500.0,0.00024658,2]
[357465048,1744075855956,-500.0,0.00024658,2]
[357465049,1744075855967,-500.0,0.00024658,2]
[357465050,1744075855977,-500.0,0.00024658,2]
[357465051,1744075855989,-500.0,0.00024658,2]
[357465052,1744075855999,-500.0,0.00024658,2]
[357465053,1744075856009,-500.0,0.00024658,2]
[357465054,1744075856020,-500.0,0.00024658,2]
[357465055,1744075856030,-500.0,0.00024658,2]
[357465056,1744075856040,-500.0,0.00024658,2]
[357465057,1744075856050,-332.12440103,0.00024658,2]
[357465058,1744075856061,-500.0,0.00024658,2]
[357465059,1744075856071,-500.0,0.00024658,2]
[357465060,1744075856081,-500.0,0.00024658,2]
[357465061,1744075856091,-500.0,0.00024658,2]
[357465062,1744075856101,-500.0,0.00024658,2]
[357465063,1744075856111,-500.0,0.00024658,2]
[357465064,1744075856122,-500.0,0.00024658,2]
[357465065,1744075856133,-346267.657667,0.000249,2]
[357465066,1744075856143,-200.0,0.0002493,2]
[357465067,1744075856153,-500.0,0.00024931,2]
[357465068,1744075856164,-684.93,0.00024931,2]
[357465069,1744075856173,-500.0,0.00024931,2]
[357465070,1744075856183,-500.0,0.00024931,2]
[357465071,1744075856193,-627.85,0.00024931,2]
[357465072,1744075856203,-500.0,0.00024931,2]
[357465073,1744075856214,-536.57,0.00024931,2]
[357465074,1744075856224,-539.51,0.00024931,2]
[357465075,1744075856234,-500.0,0.00024931,2]
[357465076,1744075856244,-500.0,0.00024931,2]
[357465077,1744075856254,-500.0,0.00024931,2]
[357465078,1744075856264,-656.43,0.00024931,2]
[357465079,1744075856275,-562.19,0.00024931,2]
[357465080,1744075856284,-833.59,0.00024931,2]
[357465081,1744075856294,-500.0,0.00024931,2]
[357465082,1744075856304,-500.0,0.00024931,2]
[357465083,1744075856313,-500.0,0.00024931,2]
[357465084,1744075856323,-500.0,0.00024931,2]
[357465085,1744075856333,-511.39,0.00024931,2]
[357465086,1744075856343,-998.79,0.00024931,2]
[357465087,1744075856353,-706.46,0.00024931,2]
[357465088,1744075856363,-747.15,0.00024931,2]
[357465089,1744075856373,-500.0,0.00024931,2]
[357465090,1744075856384,-613.65,0.00024931,2]
[357465091,1744075856395,-500.0,0.00024931,2]
[357465092,1744075856405,-500.0,0.00024931,2]
[357465093,1744075856414,-1243.28,0.00024931,2]
[357465094,1744075856424,-571.29,0.00024931,2]
[357465095,1744075856433,-1564.56,0.00024931,2]
[357465096,1744075856443,-806.0,0.00024931,2]
[357465097,1744075856452,-500.0,0.00024931,2]
[357465098,1744075856462,-2890.56,0.00024931,2]
[357465099,1744075856473,-645.6,0.00024931,2]
[357465100,1744075856485,-560.24,0.00024931,2]
[357465101,1744075856495,-500.0,0.00024931,2]
[357465102,1744075856504,-500.0,0.00024931,2]
[357465103,1744075856514,-500.0,0.00024931,2]
[357465104,1744075856524,-686.29,0.00024931,2]
[357465105,1744075856533,-644.83,0.00024931,2]
[357465106,1744075856543,-683.69,0.00024931,2]
[357465107,1744075856554,-963.6,0.00024931,2]
[357465108,1744075856564,-745.08,0.00024931,2]
[357465109,1744075856573,-5061.69,0.00024931,2]
[357465110,1744075856584,-1159.91,0.00024931,2]
[357465111,1744075856595,-1279.45,0.00024931,2]
[357465112,1744075856606,-643.68,0.00024931,2]
[357465113,1744075856616,-996.41,0.00024931,2]
[357465114,1744075856627,-645.19,0.00024931,2]
[357465115,1744075856637,-690.67,0.00024931,2]
[357465116,1744075856647,-886.21,0.00024931,2]
[357465117,1744075856657,-917.76,0.00024931,2]
[357465118,1744075856667,-500.0,0.00024931,2]
[357465119,1744075856679,-1205.86,0.00024931,2]
[357465120,1744075856690,-650.7,0.00024931,2]
[357465121,1744075856700,-500.0,0.00024931,2]
[357465122,1744075856710,-718.92,0.00024931,2]
[357465123,1744075856721,-906.03,0.00024931,2]
[357465124,1744075856731,-657.7,0.00024931,2]
[357465125,1744075856741,-500.0,0.00024931,2]
[357465126,1744075856750,-1058.79,0.00024931,2]
[357465127,1744075856761,-1529.51,0.00024931,2]
[357465128,1744075856775,-500.0,0.00024931,2]
[357465129,1744075856786,-923.55,0.00024931,2]
[357465130,1744075856796,-605.62,0.00024931,2]
[357465131,1744075856805,-1002.0,0.00025,2]
[357465132,1744075856815,-91098.47845151,0.00025,2]
[357465133,1744075856825,-1877.78745542,0.00025,2]
[357465134,1744075856834,-693.87128215,0.00025171,2]
[357465135,1744075856844,-156.310352,0.00025188,2]
[357465136,1744075856854,-500.0,0.00025205,2]
[357465137,1744075856864,-684.93,0.00025205,2]
[357465138,1744075856874,-500.0,0.00025205,2]
[357465139,1744075856884,-500.0,0.00025205,2]
[357465140,1744075856895,-627.85,0.00025205,2]
[357465141,1744075856905,-500.0,0.00025205,2]
[357465142,1744075856915,-536.57,0.00025205,2]
[357465143,1744075856926,-539.51,0.00025205,2]
[357465144,1744075856936,-500.0,0.00025205,2]
[357465145,1744075856947,-331.36852935,0.00025205,2]
[357465146,1744075856957,-500.0,0.00025205,2]
[357465147,1744075856969,-656.43,0.00025205,2]
[357465148,1744075856980,-562.19,0.00025205,2]
[357465149,1744075856990,-833.59,0.00025205,2]
[357465150,1744075857001,-500.0,0.00025205,2]
[357465151,1744075857011,-500.0,0.00025205,2]
[357465152,1744075857021,-500.0,0.00025205,2]
[357465153,1744075857032,-500.0,0.00025205,2]
[357465154,1744075857043,-511.39,0.00025205,2]
[357465155,1744075857054,-998.79,0.00025205,2]
[357465156,1744075857064,-706.46,0.00025205,2]
[357465157,1744075857076,-747.15,0.00025205,2]
[357465158,1744075857086,-500.0,0.00025205,2]
[357465159,1744075857097,-613.65,0.00025205,2]
[357465160,1744075857108,-500.0,0.00025205,2]
[357465161,1744075857118,-500.0,0.00025205,2]
[357465162,1744075857129,-1243.28,0.00025205,2]
[357465163,1744075857139,-571.29,0.00025205,2]
[357465164,1744075857149,-1564.56,0.00025205,2]
[357465165,1744075857160,-806.0,0.00025205,2]
[357465166,1744075857170,-187.35538319,0.00025205,2]
[357465167,1744075857180,-2890.56,0.00025205,2]
[357465168,1744075857191,-645.6,0.00025205,2]
[357465169,1744075857201,-560.24,0.00025205,2]
[357465170,1744075857211,-500.0,0.00025205,2]
[357465171,1744075857223,-500.0,0.00025205,2]
[357465172,1744075857234,-500.0,0.00025205,2]
[357465173,1744075857244,-686.29,0.00025205,2]
[357465174,1744075857254,-644.83,0.00025205,2]
[357465175,1744075857265,-683.69,0.00025205,2]
[357465176,1744075857285,-963.6,0.00025205,2]
[357465177,1744075857298,-745.08,0.00025205,2]
[357465178,1744075857309,-5061.69,0.00025205,2]
[357465179,1744075857319,-1159.91,0.00025205,2]
[357465180,1744075857329,-1279.45,0.00025205,2]
[357465181,1744075857339,-643.68,0.00025205,2]
[357465182,1744075857350,-996.41,0.00025205,2]
[357465183,1744075857360,-645.19,0.00025205,2]
[357465184,1744075857370,-690.67,0.00025205,2]
[357465185,1744075857381,-886.21,0.00025205,2]
[357465186,1744075857398,-917.76,0.00025205,2]
[357465187,1744075857413,-500.0,0.00025205,2]
[357465188,1744075857424,-1205.86,0.00025205,2]
[357465189,1744075857434,-650.7,0.00025205,2]
[357465190,1744075857445,-500.0,0.00025205,2]
[357465191,1744075857455,-718.92,0.00025205,2]
[357465192,1744075857466,-906.03,0.00025205,2]
[357465193,1744075857477,-657.7,0.00025205,2]
[357465194,1744075857487,-500.0,0.00025205,2]
[357465195,1744075857498,-1058.79,0.00025205,2]
[357465196,1744075857508,-1529.51,0.00025205,2]
[357465197,1744075857519,-500.0,0.00025205,2]
[357465198,1744075857529,-923.55,0.00025205,2]
[357465199,1744075857539,-605.62,0.00025205,2]
[357465200,1744075857550,-156.310352,0.00025282,2]
[357465201,1744075857560,-215.0738,0.00025363,2]
[357465202,1744075857570,-156.310352,0.00025376,2]
[357465203,1744075857580,-900.0,0.00025469,3]
[357465204,1744075857592,-500.0,0.00025479,2]
[357465205,1744075857606,-684.93,0.00025479,2]
[357465206,1744075857616,-500.0,0.00025479,2]
[357465207,1744075857626,-500.0,0.00025479,2]
[357465208,1744075857638,-627.85,0.00025479,2]
[357465209,1744075857649,-500.0,0.00025479,2]
[357465210,1744075857660,-536.57,0.00025479,2]
[357465211,1744075857670,-539.51,0.00025479,2]
[357465212,1744075857682,-500.0,0.00025479,2]
[357465213,1744075857693,-500.0,0.00025479,2]
[357465214,1744075857703,-656.43,0.00025479,2]
[357465215,1744075857715,-562.19,0.00025479,2]
[357465216,1744075857725,-833.59,0.00025479,2]
[357465217,1744075857736,-500.0,0.00025479,2]
[357465218,1744075857748,-500.0,0.00025479,2]
[357465219,1744075857758,-493.78,0.00025479,2]
[357465220,1744075857769,-500.0,0.00025479,2]
[357465221,1744075857780,-511.39,0.00025479,2]
[357465222,1744075857790,-998.79,0.00025479,2]
[357465223,1744075857800,-706.46,0.00025479,2]
[357465224,1744075857811,-747.15,0.00025479,2]
[357465225,1744075857822,-500.0,0.00025479,2]
[357465226,1744075857833,-613.65,0.00025479,2]
[357465227,1744075857844,-500.0,0.00025479,2]
[357465228,1744075857855,-500.0,0.00025479,2]
[357465229,1744075857866,-1243.28,0.00025479,2]
[357465230,1744075857876,-571.29,0.00025479,2]
[357465231,1744075857887,-1564.56,0.00025479,2]
[357465232,1744075857897,-806.0,0.00025479,2]
[357465233,1744075857908,-2890.56,0.00025479,2]
[357465234,1744075857919,-645.6,0.00025479,2]
[357465235,1744075857932,-560.24,0.00025479,2]
[357465236,1744075857943,-370.1012206,0.00025479,2]
[357465237,1744075857954,-433.55640487,0.00025479,2]
[357465238,1744075857966,-500.0,0.00025479,2]
[357465239,1744075857978,-686.29,0.00025479,2]
[357465240,1744075857989,-644.83,0.00025479,2]
[357465241,1744075858001,-683.69,0.00025479,2]
[357465242,1744075858011,-963.6,0.00025479,2]
[357465243,1744075858022,-745.08,0.00025479,2]
[357465244,1744075858034,-5061.69,0.00025479,2]
[357465245,1744075858046,-1159.91,0.00025479,2]
[357465246,1744075858056,-1279.45,0.00025479,2]
[357465247,1744075858068,-643.68,0.00025479,2]
[357465248,1744075858078,-996.41,0.00025479,2]
[357465249,1744075858091,-645.19,0.00025479,2]
[357465250,1744075858102,-690.67,0.00025479,2]
[357465251,1744075858113,-886.21,0.00025479,2]
[357465252,1744075858123,-917.76,0.00025479,2]
[357465253,1744075858134,-500.0,0.00025479,2]
[357465254,1744075858145,-1205.86,0.00025479,2]
[357465255,1744075858155,-650.7,0.00025479,2]
[357465256,1744075858167,-500.0,0.00025479,2]
[357465257,1744075858180,-718.92,0.00025479,2]
[357465258,1744075858191,-906.03,0.00025479,2]
[357465259,1744075858202,-657.7,0.00025479,2]
[357465260,1744075858213,-500.0,0.00025479,2]
[357465261,1744075858228,-1058.79,0.00025479,2]
[357465262,1744075858239,-1529.51,0.00025479,2]
[357465263,1744075858251,-500.0,0.00025479,2]
[357465264,1744075858262,-923.55,0.00025479,2]
[357465265,1744075858273,-605.62,0.00025479,2]
[357465266,1744075858284,-500.0,0.00025675,2]
[357465267,1744075858295,-500.66,0.00025743,3]
[357465268,1744075858306,-331.77848095,0.00025753,2]
[357465269,1744075858316,-684.93,0.00025753,2]
[357465270,1744075858327,-460.67336971,0.00025753,2]
[357465271,1744075858338,-500.0,0.00025753,2]
[357465272,1744075858348,-627.85,0.00025753,2]
[357465273,1744075858359,-500.0,0.00025753,2]
[357465274,1744075858369,-536.57,0.00025753,2]
[357465275,1744075858380,-539.51,0.00025753,2]
[357465276,1744075858391,-500.0,0.00025753,2]
[357465277,1744075858402,-500.0,0.00025753,2]
[357465278,1744075858413,-656.43,0.00025753,2]
[357465279,1744075858424,-562.19,0.00025753,2]
[357465280,1744075858434,-833.59,0.00025753,2]
[357465281,1744075858446,-500.0,0.00025753,2]
[357465282,1744075858458,-500.0,0.00025753,2]
[357465283,1744075858472,-500.0,0.00025753,2]
[357465284,1744075858483,-511.39,0.00025753,2]
[357465285,1744075858494,-998.79,0.00025753,2]
[357465286,1744075858506,-706.46,0.00025753,2]
[357465287,1744075858517,-747.15,0.00025753,2]
[357465288,1744075858529,-500.0,0.00025753,2]
[357465289,1744075858539,-613.65,0.00025753,2]
[357465290,1744075858551,-500.0,0.00025753,2]
[357465291,1744075858562,-500.0,0.00025753,2]
[357465292,1744075858573,-1243.28,0.00025753,2]
[357465293,1744075858585,-571.29,0.00025753,2]
[357465294,1744075858599,-1564.56,0.00025753,2]
[357465295,1744075858610,-806.0,0.00025753,2]
[357465296,1744075858621,-2890.56,0.00025753,2]
[357465297,1744075858631,-645.6,0.00025753,2]
[357465298,1744075858643,-560.24,0.00025753,2]
[357465299,1744075858654,-391.95687587,0.00025753,2]
[357465300,1744075858664,-686.29,0.00025753,2]
[357465301,1744075858675,-644.83,0.00025753,2]
[357465302,1744075858686,-683.69,0.00025753,2]
[357465303,1744075858697,-963.6,0.00025753,2]
[357465304,1744075858707,-745.08,0.00025753,2]
[357465305,1744075858722,-5061.69,0.00025753,2]
[357465306,1744075858733,-1159.91,0.00025753,2]
[357465307,1744075858744,-1279.45,0.00025753,2]
[357465308,1744075858755,-643.68,0.00025753,2]
[357465309,1744075858766,-996.41,0.00025753,2]
[357465310,1744075858777,-645.19,0.00025753,2]
[357465311,1744075858788,-690.67,0.00025753,2]
[357465312,1744075858798,-886.21,0.00025753,2]
[357465313,1744075858808,-917.76,0.00025753,2]
[357465314,1744075858818,-500.0,0.00025753,2]
[357465315,1744075858829,-1205.86,0.00025753,2]
[357465316,1744075858840,-650.7,0.00025753,2]
[357465317,1744075858851,-500.0,0.00025753,2]
[357465318,1744075858865,-718.92,0.00025753,2]
[357465319,1744075858875,-906.03,0.00025753,2]
[357465320,1744075858886,-657.7,0.00025753,2]
[357465321,1744075858896,-500.0,0.00025753,2]
[357465322,1744075858907,-1058.79,0.00025753,2]
[357465323,1744075858918,-1529.51,0.00025753,2]
[357465324,1744075858928,-500.0,0.00025753,2]
[357465325,1744075858939,-923.55,0.00025753,2]
[357465326,1744075858949,-605.62,0.00025753,2]
[357465327,1744075858959,-594.65960246,0.00025954,2]
[357465328,1744075858971,-500.0,0.00025954,2]
[357465329,1744075858982,-501.46052507,0.00025954,2]
[357465330,1744075858992,-500.0,0.00025954,2]
[357465331,1744075859002,-500.34759487,0.00025954,2]
[357465332,1744075859012,-49168.13254373,0.00026,30]
[357465333,1744075859023,-783.73948285,0.00026,30]
[357465334,1744075859034,-684.93,0.00026027,2]
[357465335,1744075859044,-500.0,0.00026027,2]
[357465336,1744075859055,-627.85,0.00026027,2]
[357465337,1744075859065,-500.0,0.00026027,2]
[357465338,1744075859076,-536.57,0.00026027,2]
[357465339,1744075859086,-539.51,0.00026027,2]
[357465340,1744075859096,-500.0,0.00026027,2]
[357465341,1744075859107,-337.97962547,0.00026027,2]
[357465342,1744075859117,-656.43,0.00026027,2]
[357465343,1744075859128,-562.19,0.00026027,2]
[357465344,1744075859139,-833.59,0.00026027,2]
[357465345,1744075859149,-500.0,0.00026027,2]
[357465346,1744075859160,-500.0,0.00026027,2]
[357465347,1744075859170,-500.0,0.00026027,2]
[357465348,1744075859181,-511.39,0.00026027,2]
[357465349,1744075859191,-998.79,0.00026027,2]
[357465350,1744075859202,-706.46,0.00026027,2]
[357465351,1744075859212,-747.15,0.00026027,2]
[357465352,1744075859224,-361.02,0.00026027,2]
[357465353,1744075859234,-613.65,0.00026027,2]
[357465354,1744075859245,-500.0,0.00026027,2]
[357465355,1744075859257,-1243.28,0.00026027,2]
[357465356,1744075859270,-500.0,0.00026027,2]
[357465357,1744075859282,-571.29,0.00026027,2]
[357465358,1744075859481,-1564.56,0.00026027,2]
[357465359,1744075859492,-806.0,0.00026027,2]
[357465360,1744075859503,-2890.56,0.00026027,2]
[357465361,1744075859513,-645.6,0.00026027,2]
[357465362,1744075859525,-560.24,0.00026027,2]
[357465363,1744075859537,-686.29,0.00026027,2]
[357465364,1744075859549,-644.83,0.00026027,2]
[357465365,1744075859559,-683.69,0.00026027,2]
[357465366,1744075859571,-963.6,0.00026027,2]
[357465367,1744075859582,-745.08,0.00026027,2]
[357465368,1744075859596,-5061.69,0.00026027,2]
[357465369,1744075859611,-1159.91,0.00026027,2]
[357465370,1744075859622,-1279.45,0.00026027,2]
[357465371,1744075859632,-643.68,0.00026027,2]
[357465372,1744075859643,-996.41,0.00026027,2]
[357465373,1744075859653,-645.19,0.00026027,2]
[357465374,1744075859663,-690.67,0.00026027,2]
[357465375,1744075859674,-886.21,0.00026027,2]
[357465376,1744075859685,-917.76,0.00026027,2]
[357465377,1744075859695,-500.0,0.00026027,2]
[357465378,1744075859704,-1205.86,0.00026027,2]
[357465379,1744075859714,-650.7,0.00026027,2]
[357465380,1744075859724,-500.0,0.00026027,2]
[357465381,1744075859734,-718.92,0.00026027,2]
[357465382,1744075859745,-906.03,0.00026027,2]
[357465383,1744075859755,-657.7,0.00026027,2]
[357465384,1744075859765,-470.38773213,0.00026027,2]
[357465385,1744075859776,-1058.79,0.00026027,2]
[357465386,1744075859785,-1529.51,0.00026027,2]
[357465387,1744075859795,-500.0,0.00026027,2]
[357465388,1744075859806,-923.55,0.00026027,2]
[357465389,1744075859818,-605.62,0.00026027,2]
[357465390,1744075859828,-500.0,0.00026148,2]
[357465391,1744075859838,-500.0,0.00026207,2]
[357465392,1744075859848,-500.0,0.00026207,2]
[357465393,1744075859859,-165.04957683,0.00026207,2]
[357465394,1744075859869,-501.49778525,0.00026207,2]
[357465395,1744075859878,-501.97825502,0.00026207,2]
[357465396,1744075859888,-500.63505816,0.00026207,2]
[357465397,1744075859898,-500.0,0.00026207,2]
[357465398,1744075859908,-543.60817017,0.00026207,2]
[357465399,1744075859918,-500.0,0.00026244,2]
[357465400,1744075859928,-500.0,0.00026244,2]
[357465401,1744075859938,-684.93,0.00026301,2]
[357465402,1744075859948,-500.0,0.00026301,2]
[357465403,1744075859958,-627.85,0.00026301,2]
[357465404,1744075859969,-500.0,0.00026301,2]
[357465405,1744075859979,-536.57,0.00026301,2]
[357465406,1744075859989,-539.51,0.00026301,2]
[357465407,1744075859999,-424.37246367,0.00026301,2]
[357465408,1744075860010,-656.43,0.00026301,2]
[357465409,1744075860020,-562.19,0.00026301,2]
[357465410,1744075860030,-833.59,0.00026301,2]
[357465411,1744075860041,-500.0,0.00026301,2]
[357465412,1744075860052,-500.0,0.00026301,2]
[357465413,1744075860063,-500.0,0.00026301,2]
[357465414,1744075860074,-511.39,0.00026301,2]
[357465415,1744075860085,-998.79,0.00026301,2]
[357465416,1744075860095,-706.46,0.00026301,2]
[357465417,1744075860106,-747.15,0.00026301,2]
[357465418,1744075860117,-613.65,0.00026301,2]
[357465419,1744075860128,-538.49,0.00026301,2]
[357465420,1744075860138,-1243.28,0.00026301,2]
[357465421,1744075860148,-217.08831143,0.00026301,2]
[357465422,1744075860159,-571.29,0.00026301,2]
[357465423,1744075860170,-1564.56,0.00026301,2]
[357465424,1744075860180,-806.0,0.00026301,2]
[357465425,1744075860190,-2890.56,0.00026301,2]
[357465426,1744075860200,-645.6,0.00026301,2]
[357465427,1744075860211,-560.24,0.00026301,2]
[357465428,1744075860224,-686.29,0.00026301,2]
[357465429,1744075860234,-644.83,0.00026301,2]
[357465430,1744075860244,-683.69,0.00026301,2]
[357465431,1744075860254,-963.6,0.00026301,2]
[357465432,1744075860265,-745.08,0.00026301,2]
[357465433,1744075860275,-5061.69,0.00026301,2]
[357465434,1744075860286,-1159.91,0.00026301,2]
[357465435,1744075860296,-1279.45,0.00026301,2]
[357465436,1744075860307,-643.68,0.00026301,2]
[357465437,1744075860317,-996.41,0.00026301,2]
[357465438,1744075860327,-645.19,0.00026301,2]
[357465439,1744075860337,-690.67,0.00026301,2]
[357465440,1744075860348,-886.21,0.00026301,2]
[357465441,1744075860359,-917.76,0.00026301,2]
[357465442,1744075860369,-500.0,0.00026301,2]
[357465443,1744075860379,-1205.86,0.00026301,2]
[357465444,1744075860389,-650.7,0.00026301,2]
[357465445,1744075860399,-500.0,0.00026301,2]
[357465446,1744075860410,-718.92,0.00026301,2]
[357465447,1744075860420,-906.03,0.00026301,2]
[357465448,1744075860430,-657.7,0.00026301,2]
[357465449,1744075860439,-1058.79,0.00026301,2]
[357465450,1744075860450,-1529.51,0.00026301,2]
[357465451,1744075860459,-500.0,0.00026301,2]
[357465452,1744075860474,-923.55,0.00026301,2]
[357465453,1744075860484,-605.62,0.00026301,2]
[357465454,1744075860494,-684.93,0.00026575,2]
[357465455,1744075860504,-500.0,0.00026575,2]
[357465456,1744075860514,-627.85,0.00026575,2]
[357465457,1744075860530,-336.55,0.00026575,2]
[357465458,1744075860541,-536.57,0.00026575,2]
[357465459,1744075860552,-539.51,0.00026575,2]
[357465460,1744075860562,-656.43,0.00026575,2]
[357465461,1744075860573,-562.19,0.00026575,2]
[357465462,1744075860583,-833.59,0.00026575,2]
[357465463,1744075860597,-500.0,0.00026575,2]
[357465464,1744075860607,-500.0,0.00026575,2]
[357465465,1744075860617,-279.40545027,0.00026575,2]
[357465466,1744075860627,-511.39,0.00026575,2]
[357465467,1744075860639,-998.79,0.00026575,2]
[357465468,1744075860649,-706.46,0.00026575,2]
[357465469,1744075860659,-747.15,0.00026575,2]
[357465470,1744075860670,-613.65,0.00026575,2]
[357465471,1744075860681,-1243.28,0.00026575,2]
[357465472,1744075860691,-571.29,0.00026575,2]